fUSD/lending_fUSD_20250313
["ID","MTS","AMOUNT","RATE_DAILY","PERIOD"]
[356073556,1741882232240,-46.71238812,0.00028347,2]
[356073558,1741882232249,-500.0,0.00028352,2]
[356073560,1741882232260,-4.36080491,0.00028352,2]
[356073562,1741882232271,-265.00459509,0.00028352,2]
[356073564,1741882232280,-2184.99540691,0.00028352,2]
[356073567,1741882232292,-698.70320757,0.00028352,2]
[356073569,1741882232304,-1043.11308552,0.00028352,2]
[356073571,1741882232313,-435.3704,0.0002837,2]
[356073573,1741882232322,-77.67281416,0.00028373,5]
[356073574,1741882232334,-106.49952291,0.00028373,5]
[356073575,1741882232347,-222.0,0.0002838,2]
[356073576,1741882232357,-318.3519349,0.0002838,2]
[356073577,1741882232369,-1061.68478344,0.0002838,2]
[356073578,1741882232379,-938.70779437,0.0002839,2]
[356073579,1741882232390,-500.0,0.00028398,18]
[356073580,1741882232399,-355.52252118,0.00028398,18]
[356073581,1741882232411,-144.47747882,0.00028398,18]
[356073582,1741882232422,-500.0,0.00028398,18]
[356073583,1741882232432,-500.0,0.00028398,18]
[356073584,1741882232442,-500.0,0.00028398,18]
[356073585,1741882232452,-500.0,0.00028398,18]
[356073586,1741882232461,-500.0,0.00028398,18]
[356073587,1741882232471,-500.0,0.00028398,18]
[356073588,1741882232481,-544.40666794,0.00028398,18]
[356073589,1741882232491,-500.0,0.00028398,18]
[356073590,1741882232500,-500.0,0.00028398,18]
[356073591,1741882232514,-500.0,0.00028398,18]
[356073592,1741882232523,-500.0,0.00028398,18]
[356073593,1741882232533,-538.5,0.00028398,18]
[356073594,1741882232542,-500.0,0.00028398,18]
[356073595,1741882232553,-500.0,0.00028398,18]
[356073597,1741882232562,-500.0,0.00028398,18]
[356073599,1741882232571,-500.0,0.00028398,18]
[356073601,1741882232580,-500.0,0.00028398,18]
[356073603,1741882232589,-500.0,0.00028398,18]
[356073605,1741882232599,-500.0,0.00028398,18]
[356073607,1741882232609,-500.0,0.00028398,18]
[356073609,1741882232619,-500.0,0.00028398,18]
[356073611,1741882232628,-500.0,0.00028398,7]
[356073613,1741882232638,-500.0,0.00028398,18]
[356073615,1741882232647,-500.0,0.00028398,18]
[356073617,1741882232656,-500.0,0.00028398,18]
[356073619,1741882232665,-500.0,0.00028398,18]
[356073621,1741882232674,-500.0,0.00028398,18]
[356073623,1741882232684,-500.0,0.00028398,18]
[356073625,1741882232693,-500.0,0.00028398,18]
[356073627,1741882232703,-500.0,0.00028398,18]
[356073629,1741882232712,-263.1222486,0.00028398,18]
[356073631,1741882232724,-236.8777514,0.00028398,18]
[356073633,1741882232733,-500.0,0.00028398,18]
[356073635,1741882232742,-223.0854286,0.00028398,18]
[356073637,1741882232760,-276.9145714,0.00028398,18]
[356073640,1741882232770,-163.21436171,0.00028398,18]
[356073642,1741882232783,-434.7021039,0.00028398,18]
[356073644,1741882232793,-500.0,0.00028398,18]
[356073645,1741882232802,-500.0,0.00028398,18]
[356073646,1741882232812,-500.0,0.00028398,18]
[356073647,1741882232823,-74.28288624,0.00028398,18]
[356073648,1741882232835,-498.89711376,0.00028398,18]
[356073649,1741882232845,-173.06841984,0.00028398,18]
[356073650,1741882232855,-500.0,0.00028398,18]
[356073651,1741882232865,-500.0,0.00028398,18]
[356073652,1741882232875,-500.0,0.00028398,18]
[356073653,1741882232884,-500.0,0.00028398,18]
[356073654,1741882232894,-500.0,0.00028398,18]
[356073655,1741882232903,-500.0,0.00028398,18]
[356073656,1741882232913,-500.0,0.00028398,18]
[356073657,1741882232923,-500.0,0.00028398,18]
[356073658,1741882232933,-500.0,0.00028398,18]
[356073659,1741882232943,-500.0,0.00028398,18]
[356073660,1741882232953,-1000.0,0.00028399,2]
[356073661,1741882232964,-500.0,0.000284,18]
[356073662,1741882232975,-500.0,0.000284,18]
[356073663,1741882232984,-500.0,0.000284,18]
[356073664,1741882232993,-500.0,0.000284,18]
[356073665,1741882233003,-612.06,0.000284,18]
[356073666,1741882233020,-500.0,0.000284,18]
[356073667,1741882233030,-500.0,0.000284,18]
[356073668,1741882233040,-500.0,0.000284,18]
[356073669,1741882233050,-500.0,0.000284,18]
[356073670,1741882233060,-1281.436,0.000284,19]
[356073671,1741882233070,-178.937,0.000284,19]
[356073672,1741882233080,-500.0,0.000284,18]
[356073673,1741882233090,-561.64,0.000284,18]
[356073674,1741882233100,-500.0,0.000284,18]
[356073675,1741882233110,-500.0,0.000284,18]
[356073676,1741882233120,-500.0,0.000284,18]
[356073677,1741882233133,-279.58431038,0.000284,18]
[356073678,1741882233143,-500.0,0.000284,18]
[356073679,1741882233152,-500.0,0.000284,18]
[356073680,1741882233161,-604.42,0.000284,18]
[356073681,1741882233171,-500.0,0.000284,18]
[356073682,1741882233181,-500.0,0.000284,18]
[356073683,1741882233190,-529.48681983,0.000284,18]
[356073684,1741882233200,-500.0,0.000284,18]
[356073685,1741882233209,-500.0,0.000284,18]
[356073686,1741882233219,-500.0,0.000284,18]
[356073687,1741882233229,-500.0,0.000284,18]
[356073688,1741882233239,-500.0,0.000284,18]
[356073689,1741882233248,-500.0,0.000284,18]
[356073690,1741882233259,-500.0,0.000284,18]
[356073691,1741882233271,-500.0,0.000284,18]
[356073692,1741882233284,-500.0,0.000284,18]
[356073693,1741882233294,-500.0,0.000284,18]
[356073694,1741882233305,-500.0,0.000284,18]
[356073695,1741882233315,-500.0,0.000284,18]
[356073696,1741882233324,-500.0,0.000284,18]
[356073697,1741882233334,-500.0,0.000284,18]
[356073698,1741882233346,-500.0,0.000284,18]
[356073699,1741882233356,-500.0,0.000284,18]
[356073700,1741882233365,-346.76375687,0.000284,18]
[356073701,1741882233375,-500.0,0.000284,18]
[356073702,1741882233387,-510.68,0.000284,18]
[356073703,1741882233397,-594.56,0.000284,18]
[356073704,1741882233407,-500.0,0.000284,18]
[356073705,1741882233417,-500.0,0.000284,18]
[356073706,1741882233429,-624.38,0.000284,18]
[356073707,1741882233440,-500.0,0.000284,18]
[356073708,1741882233450,-500.0,0.000284,18]
[356073709,1741882233459,-500.0,0.000284,18]
[356073710,1741882233469,-540.73,0.000284,18]
[356073711,1741882233478,-500.0,0.000284,18]
[356073712,1741882233488,-500.0,0.000284,18]
[356073713,1741882233497,-500.0,0.000284,18]
[356073714,1741882233507,-500.0,0.000284,18]
[356073715,1741882233518,-520.85014895,0.000284,18]
[356073716,1741882233528,-500.0,0.000284,18]
[356073717,1741882233537,-500.0,0.000284,18]
[356073718,1741882233547,-500.0,0.000284,18]
[356073719,1741882233557,-500.0,0.000284,18]
[356073720,1741882233566,-53.30356037,0.000284,18]
[356073721,1741882233578,-446.69643963,0.000284,18]
[356073722,1741882233588,-35.8982132,0.000284,18]
[356073723,1741882233599,-464.1017868,0.000284,18]
[356073724,1741882233608,-250.75497622,0.000284,18]
[356073725,1741882233620,-249.24502378,0.000284,18]
[356073726,1741882233629,-500.0,0.000284,18]
[356073727,1741882233639,-500.0,0.000284,18]
[356073728,1741882233670,-507.74,0.000284,18]
[356073729,1741882233680,-500.0,0.000284,18]
[356073730,1741882233690,-173.14,0.000284,18]
[356073731,1741882233702,-500.0,0.000284,18]
[356073732,1741882233712,-159.0,0.000284,18]
[356073733,1741882233722,-1447.69050547,0.000284,10]
[356073734,1741882233734,-1052.30949453,0.000284,10]
[356073735,1741882233744,-150.0,0.000284,2]
[356073736,1741882233754,-234.682491,0.00028401,3]
[356073737,1741882233766,-154.60245507,0.00028408,18]
[356073740,1741882237716,-448.01364349,0.00028408,18]
[356073741,1741882237727,-500.0,0.00028408,18]
[356073742,1741882237736,-500.0,0.00028408,18]
[356073743,1741882237745,-282.59272857,0.00028408,18]
[356073744,1741882237755,-178.15,0.00028408,18]
[356073745,1741882237765,-288.67,0.00028408,18]
[356073746,1741882237774,-500.0,0.00028408,18]
[356073747,1741882237783,-500.0,0.00028408,18]
[356073748,1741882237792,-500.0,0.00028408,18]
[356073749,1741882237802,-500.0,0.00028408,7]
[356073750,1741882237811,-45.42047347,0.00028408,18]
[356073751,1741882237823,-385.85442402,0.00028408,18]
[356073752,1741882237835,-68.72510251,0.00028408,18]
[356073753,1741882237844,-500.0,0.00028408,18]
[356073754,1741882237854,-500.0,0.00028408,18]
[356073755,1741882237863,-142.98616953,0.00028408,18]
[356073756,1741882237879,-357.01383047,0.00028408,18]
[356073757,1741882237889,-514.34473093,0.00028408,18]
[356073758,1741882237899,-500.0,0.00028408,18]
[356073759,1741882237909,-500.0,0.00028408,18]
[356073760,1741882237918,-500.0,0.00028408,18]
[356073761,1741882237928,-500.0,0.00028408,18]
[356073762,1741882237938,-500.0,0.00028408,18]
[356073763,1741882237948,-271.0014386,0.00028408,18]
[356073764,1741882237961,-228.9985614,0.00028408,18]
[356073765,1741882237971,-573.18,0.00028408,18]
[356073766,1741882237980,-500.0,0.00028408,18]
[356073767,1741882237990,-500.0,0.00028408,18]
[356073768,1741882238000,-500.0,0.00028408,18]
[356073769,1741882238011,-500.0,0.00028408,18]
[356073770,1741882238020,-333.41019383,0.00028408,18]
[356073771,1741882238030,-500.0,0.00028408,18]
[356073772,1741882238040,-500.0,0.00028408,18]
[356073773,1741882238050,-500.0,0.00028408,18]
[356073774,1741882238061,-500.0,0.00028408,18]
[356073775,1741882238072,-500.0,0.00028408,18]
[356073776,1741882238082,-500.0,0.0002841,18]
[356073777,1741882238092,-500.0,0.0002841,18]
[356073778,1741882238102,-500.0,0.0002841,7]
[356073779,1741882238112,-500.0,0.0002841,18]
[356073780,1741882238122,-500.0,0.0002841,18]
[356073781,1741882238131,-500.0,0.0002841,18]
[356073782,1741882238141,-500.0,0.0002841,18]
[356073783,1741882238151,-500.0,0.0002841,18]
[356073784,1741882238161,-500.0,0.0002841,18]
[356073785,1741882238170,-500.0,0.0002841,18]
[356073786,1741882238179,-500.0,0.0002841,18]
[356073787,1741882238190,-573.18,0.0002841,18]
[356073788,1741882238199,-500.0,0.0002841,18]
[356073789,1741882238209,-500.0,0.0002841,18]
[356073790,1741882238218,-500.0,0.0002841,18]
[356073791,1741882238228,-500.0,0.0002841,18]
[356073792,1741882238237,-279.29556,0.0002841,41]
[356073793,1741882238247,-478.89658321,0.0002841,18]
[356073794,1741882238261,-500.0,0.0002841,18]
[356073795,1741882238271,-201.09766976,0.0002841,18]
[356073796,1741882238281,-500.0,0.0002841,18]
[356073797,1741882238291,-500.0,0.0002841,18]
[356073798,1741882238301,-500.0,0.00028412,18]
[356073799,1741882238311,-500.0,0.00028412,18]
[356073800,1741882238320,-500.0,0.00028412,18]
[356073801,1741882238331,-500.0,0.00028412,18]
[356073802,1741882238344,-500.0,0.00028412,18]
[356073803,1741882238354,-234.682491,0.00028419,7]
[356073804,1741882238364,-878.0,0.00028422,2]
[356073805,1741882238375,-234.682491,0.00028424,15]
[356073806,1741882238387,-500.0,0.00028427,18]
[356073807,1741882238397,-500.0,0.00028427,18]
[356073808,1741882238407,-169.59863359,0.00028427,18]
[356073809,1741882238417,-500.0,0.00028427,18]
[356073810,1741882238431,-366.36787099,0.00028427,18]
[356073811,1741882238441,-500.0,0.00028427,7]
[356073812,1741882238451,-500.0,0.00028427,18]
[356073813,1741882238460,-500.0,0.00028427,18]
[356073814,1741882238470,-500.0,0.00028427,18]
[356073815,1741882238480,-500.0,0.00028427,18]
[356073816,1741882238490,-500.0,0.00028427,18]
[356073817,1741882238500,-500.0,0.00028427,18]
[356073818,1741882238511,-500.0,0.00028427,18]
[356073819,1741882238521,-500.0,0.00028427,18]
[356073820,1741882238531,-500.0,0.00028427,18]
[356073821,1741882238541,-573.18,0.00028427,18]
[356073822,1741882238551,-500.0,0.00028427,18]
[356073823,1741882238561,-500.0,0.00028427,18]
[356073824,1741882238763,-500.0,0.00028427,18]
[356073825,1741882238774,-500.0,0.00028427,18]
[356073826,1741882238784,-500.0,0.00028427,18]
[356073827,1741882238795,-500.0,0.00028427,18]
[356073828,1741882238804,-488.6971981,0.00028427,18]
[356073829,1741882238814,-500.0,0.0002843,18]
[356073830,1741882238824,-234.682491,0.0002843,10]
[356073831,1741882238833,-5069.0731726,0.00028436,2]
[356073832,1741882238843,-169.328308,0.00028436,2]
[356073833,1741882238853,-1618.7716281,0.00028439,2]
[356073834,1741882238863,-234.682491,0.00028443,18]
[356073835,1741882238873,-500.0,0.00028447,18]
[356073836,1741882238882,-500.0,0.00028447,18]
[356073837,1741882238891,-500.0,0.00028447,18]
[356073838,1741882238901,-500.0,0.00028447,18]
[356073839,1741882238911,-500.0,0.00028447,18]
[356073840,1741882238920,-6662.1014609,0.00028448,2]
[356073841,1741882238930,-1208.0925546,0.00028449,2]
[356073842,1741882238940,-500.0,0.0002845,7]
[356073843,1741882238949,-500.0,0.0002845,18]
[356073844,1741882238960,-500.0,0.0002845,18]
[356073845,1741882238970,-500.0,0.0002845,18]
[356073846,1741882238980,-500.0,0.0002845,18]
[356073847,1741882238990,-500.0,0.0002845,18]
[356073848,1741882238999,-500.0,0.0002845,18]
[356073849,1741882239009,-500.0,0.0002845,18]
[356073850,1741882239020,-573.18,0.0002845,18]
[356073851,1741882239030,-209.50652825,0.0002845,18]
[356073852,1741882239040,-500.0,0.0002845,18]
[356073853,1741882239050,-500.0,0.0002845,18]
[356073854,1741882239060,-500.0,0.0002845,18]
[356073855,1741882239070,-500.0,0.0002845,18]
[356073856,1741882239080,-500.0,0.0002845,18]
[356073857,1741882239090,-1000.0,0.0002845,7]
[356073858,1741882239099,-28547.12,0.00028452,18]
[356073859,1741882239110,-500.0,0.00028459,18]
[356073860,1741882239120,-500.0,0.00028459,18]
[356073861,1741882239130,-500.0,0.00028459,18]
[356073862,1741882239141,-161.99085013,0.00028459,18]
[356073863,1741882239150,-500.0,0.00028459,18]
[356073864,1741882239160,-500.0,0.00028459,18]
[356073865,1741882239170,-276.42027071,0.00028459,18]
[356073866,1741882239180,-500.0,0.00028459,18]
[356073867,1741882239190,-500.0,0.00028459,18]
[356073868,1741882239200,-500.0,0.00028459,18]
[356073869,1741882239209,-500.0,0.00028459,2]
[356073870,1741882239220,-500.0,0.00028459,18]
[356073871,1741882239230,-500.0,0.00028459,18]
[356073872,1741882239240,-500.0,0.00028459,18]
[356073873,1741882239250,-500.0,0.00028459,18]
[356073874,1741882239262,-500.0,0.00028459,18]
[356073875,1741882239272,-500.0,0.00028459,18]
[356073876,1741882239282,-500.0,0.00028459,18]
[356073877,1741882239292,-500.0,0.00028459,2]
[356073878,1741882239302,-625.89410896,0.00028459,2]
[356073879,1741882239312,-500.0,0.00028459,18]
[356073880,1741882239322,-669.19,0.00028459,18]
[356073881,1741882239332,-500.0,0.00028459,18]
[356073882,1741882239344,-611.28758846,0.00028459,18]
[356073883,1741882239355,-500.0,0.00028459,18]
[356073884,1741882239365,-500.0,0.00028459,18]
[356073885,1741882239376,-1140.84,0.00028459,18]
[356073886,1741882239387,-500.0,0.00028459,18]
[356073887,1741882239397,-500.0,0.00028459,18]
[356073888,1741882239406,-895.15,0.00028459,18]
[356073889,1741882239417,-500.0,0.00028459,18]
[356073890,1741882239428,-500.0,0.00028459,18]
[356073891,1741882239438,-500.0,0.00028459,18]
[356073892,1741882239447,-500.0,0.00028459,18]
[356073893,1741882239457,-500.0,0.00028459,18]
[356073894,1741882239467,-500.0,0.00028459,18]
[356073895,1741882239477,-500.0,0.00028459,18]
[356073896,1741882239491,-500.0,0.00028459,18]
[356073898,1741882239501,-711.74,0.00028459,18]
[356073900,1741882239514,-500.0,0.00028459,18]
[356073902,1741882239525,-570.87,0.00028459,18]
[356073904,1741882239535,-500.0,0.00028459,18]
[356073906,1741882239545,-500.0,0.00028459,18]
[356073908,1741882239554,-1178.32,0.00028459,18]
[356073910,1741882239564,-500.0,0.00028459,18]
[356073912,1741882239574,-500.0,0.00028459,18]
[356073914,1741882239584,-500.0,0.00028459,18]
[356073917,1741882239593,-541.63679595,0.00028459,18]
[356073920,1741882239603,-500.0,0.00028459,18]
[356073923,1741882239613,-241.00028678,0.00028459,18]
[356073925,1741882239623,-500.0,0.00028459,18]
[356073927,1741882239632,-500.0,0.00028459,18]
[356073929,1741882239642,-500.0,0.00028459,18]
[356073931,1741882239652,-500.0,0.00028459,18]
[356073933,1741882239662,-500.0,0.00028459,18]
[356073935,1741882239672,-500.0,0.00028459,18]
[356073937,1741882239682,-500.0,0.00028459,18]
[356073939,1741882239692,-368.18874456,0.00028459,18]
[356073941,1741882239701,-500.0,0.00028459,18]
[356073943,1741882239711,-500.0,0.00028459,18]
[356073945,1741882239720,-500.0,0.00028459,18]
[356073947,1741882239730,-500.0,0.00028459,18]
[356073949,1741882239739,-500.0,0.00028459,18]
[356073950,1741882239748,-500.0,0.00028459,18]
[356073953,1741882239758,-602.59,0.00028459,18]
[356073954,1741882239772,-500.0,0.00028459,18]
[356073956,1741882239781,-500.0,0.00028459,18]
[356073958,1741882239791,-188.10845719,0.00028459,18]
[356073960,1741882239801,-500.0,0.00028459,18]
[356073962,1741882239811,-500.0,0.00028459,18]
[356073963,1741882239820,-28428.1092979,0.0002846,3]
[356073964,1741882239830,-16583.0637571,0.0002846,3]
[356073965,1741882239840,-7107.02732448,0.00028468,3]
[356073966,1741882239849,-500.0,0.00028468,18]
[356073968,1741882239859,-547.88055555,0.00028468,18]
[356073970,1741882239868,-500.0,0.00028468,18]
[356073972,1741882239878,-7107.02732448,0.00028469,3]
[356073974,1741882239887,-500.0,0.00028469,18]
[356073976,1741882239896,-18952.0728653,0.00028469,3]
[356073978,1741882239909,-500.0,0.0002847,18]
[356073980,1741882239919,-500.0,0.0002847,18]
[356073982,1741882239928,-500.0,0.0002847,18]
[356073984,1741882239937,-500.0,0.0002847,7]
[356073986,1741882239947,-407.58565117,0.0002847,18]
[356073988,1741882239956,-500.0,0.0002847,18]
[356073990,1741882239966,-500.0,0.0002847,18]
[356073992,1741882239976,-500.0,0.0002847,18]
[356073994,1741882239986,-500.0,0.0002847,18]
[356073996,1741882239995,-500.0,0.0002847,18]
[356073998,1741882240004,-580.6333454,0.0002847,18]
[356073999,1741882240019,-500.0,0.0002847,18]
[356074001,1741882240029,-500.0,0.0002847,18]
[356074003,1741882240039,-573.18,0.0002847,18]
[356074005,1741882240049,-500.0,0.0002847,18]
[356074007,1741882240059,-500.0,0.0002847,18]
[356074009,1741882240068,-500.0,0.0002847,18]
[356074011,1741882240078,-500.0,0.0002847,18]
[356074013,1741882240088,-316.49369396,0.0002847,18]
[356074015,1741882240098,-7107.02732448,0.0002847,3]
[356074017,1741882240108,-938.70779433,0.00028473,2]
[356074019,1741882240117,-501.72082279,0.00028473,5]
[356074021,1741882240127,-1000.0,0.00028477,7]
[356074023,1741882240136,-236.0,0.00028478,120]
[356074025,1741882240146,-229.0,0.00028478,120]
[356074027,1741882240156,-1977.83831848,0.00028479,3]
[356074029,1741882240165,-500.0,0.00028479,18]
[356074031,1741882240175,-500.0,0.00028479,18]
[356074033,1741882240184,-367.82295817,0.00028479,18]
[356074035,1741882240194,-556.05576339,0.00028479,18]
[356074037,1741882240203,-500.0,0.00028479,18]
[356074039,1741882240213,-500.0,0.00028479,18]
[356074041,1741882240222,-500.0,0.00028479,18]
[356074043,1741882240232,-169.328308,0.00028479,2]
[356074045,1741882240241,-500.0,0.00028479,18]
[356074047,1741882240251,-1052.7851079,0.00028479,2]
[356074048,1741882240260,-500.0,0.00028479,18]
[356074050,1741882240271,-500.0,0.00028479,18]
[356074052,1741882240280,-500.0,0.00028479,18]
[356074054,1741882240290,-500.0,0.00028479,18]
[356074056,1741882240300,-500.0,0.00028479,18]
[356074058,1741882240309,-390.7891074,0.00028479,18]
[356074060,1741882240318,-500.0,0.00028479,18]
[356074062,1741882240327,-500.0,0.00028479,18]
[356074064,1741882240337,-500.0,0.00028479,18]
[356074066,1741882240348,-669.19,0.00028479,18]
[356074068,1741882240358,-500.0,0.00028479,18]
[356074070,1741882240367,-500.0,0.00028479,18]
[356074072,1741882240378,-1140.84,0.00028479,18]
[356074074,1741882240387,-500.0,0.00028479,18]
[356074076,1741882240397,-895.15,0.00028479,18]
[356074078,1741882240406,-500.0,0.00028479,18]
[356074080,1741882240416,-220.63,0.00028479,18]
[356074082,1741882240426,-500.0,0.00028479,18]
[356074084,1741882240436,-500.0,0.00028479,18]
[356074086,1741882240445,-711.74,0.00028479,18]
[356074088,1741882240455,-500.0,0.00028479,18]
[356074090,1741882240464,-809.26768965,0.00028479,18]
[356074093,1741882240483,-369.05231035,0.00028479,18]
[356074094,1741882240493,-500.0,0.00028479,18]
[356074096,1741882240502,-70.27868595,0.00028479,18]
[356074099,1741882240517,-429.72131405,0.00028479,18]
[356074101,1741882240526,-298.23835449,0.00028479,18]
[356074103,1741882240538,-201.76164551,0.00028479,18]
[356074105,1741882240547,-214.81606718,0.00028479,18]
[356074107,1741882240557,-98.71711049,0.00028479,18]
[356074109,1741882240568,-401.28288951,0.00028479,18]
[356074111,1741882240577,-197.58611049,0.00028479,18]
[356074113,1741882240588,-302.41388951,0.00028479,18]
[356074115,1741882240597,-332.38154259,0.00028479,18]
[356074117,1741882240610,-167.61845741,0.00028479,18]
[356074120,1741882240619,-500.0,0.00028479,18]
[356074122,1741882240629,-500.0,0.00028479,18]
[356074124,1741882240638,-500.0,0.00028479,18]
[356074126,1741882240648,-500.0,0.00028479,18]
[356074127,1741882240658,-3955.67663696,0.00028479,3]
[356074129,1741882240667,-494.45957962,0.0002848,3]
[356074131,1741882240677,-4410.9084916,0.0002848,2]
[356074133,1741882240687,-3752.7438106,0.0002848,2]
[356074135,1741882240696,-3094.5791296,0.0002848,2]
[356074136,1741882240708,-2436.4144485,0.0002848,2]
[356074137,1741882240717,-1778.2497675,0.0002848,2]
[356074138,1741882240726,-169.328308,0.0002848,2]
[356074140,1741882240735,-169.328308,0.0002848,2]
[356074142,1741882240744,-169.328308,0.0002848,2]
[356074144,1741882240754,-169.328308,0.0002848,2]
[356074146,1741882240768,-897.4776611,0.0002848,2]
[356074148,1741882240778,-742.1702143,0.0002848,2]
[356074150,1741882240789,-586.8627676,0.0002848,2]
[356074152,1741882240799,-431.5553208,0.0002848,2]
[356074154,1741882240809,-1435.4934409,0.0002848,2]
[356074156,1741882240818,-1252.2152537,0.0002848,2]
[356074158,1741882240828,-1068.9370665,0.0002848,2]
[356074160,1741882240837,-885.6588793,0.0002848,2]
[356074162,1741882240846,-702.3806921,0.0002848,2]
[356074164,1741882240855,-5907.8147799,0.0002848,2]
[356074166,1741882240865,-5153.5280988,0.0002848,2]
[356074168,1741882240874,-4167.94376557,0.0002848,2]
[356074170,1741882240886,-231.29765223,0.0002848,2]
[356074172,1741882240895,-1949.86486448,0.0002848,2]
[356074174,1741882240907,-278.1174902,0.0002848,2]
[356074176,1741882240918,-1416.97238202,0.0002848,2]
[356074178,1741882240928,-782.77261798,0.0002848,2]
[356074180,1741882240939,-286.85471901,0.0002848,2]
[356074183,1741882240950,-268.25522138,0.0002848,2]
[356074185,1741882240966,-1552.78549733,0.0002848,2]
[356074187,1741882240976,-234.682491,0.00028481,3]
[356074189,1741882240985,-500.0,0.00028487,2]
[356074191,1741882240995,-500.0,0.00028488,18]
[356074192,1741882241005,-500.0,0.00028488,18]
[356074193,1741882241016,-500.0,0.00028489,18]
[356074194,1741882241025,-500.0,0.00028489,18]
[356074195,1741882241035,-500.0,0.00028498,18]
[356074196,1741882241044,-500.0,0.00028498,18]
[356074197,1741882241054,-312.59574597,0.00028498,7]
[356074198,1741882241065,-187.40425403,0.00028498,7]
[356074199,1741882241075,-500.0,0.00028498,18]
[356074200,1741882241084,-500.0,0.00028498,18]
[356074201,1741882241094,-500.0,0.00028498,18]
[356074202,1741882241103,-500.0,0.00028498,18]
[356074203,1741882241112,-500.0,0.00028498,18]
[356074204,1741882241122,-500.0,0.00028498,18]
[356074205,1741882241131,-440.67975405,0.00028498,18]
[356074206,1741882241141,-500.0,0.00028498,18]
[356074207,1741882241150,-573.18,0.00028498,18]
[356074208,1741882241159,-500.0,0.00028498,18]
[356074209,1741882241168,-500.0,0.00028498,18]
[356074210,1741882241178,-500.0,0.00028498,18]
[356074211,1741882241187,-500.0,0.00028498,18]
[356074212,1741882241197,-500.0,0.00028498,18]
[356074213,1741882241206,-500.0,0.00028498,18]
[356074214,1741882241215,-500.0,0.00028498,18]
[356074215,1741882241225,-500.0,0.00028498,18]
[356074216,1741882241234,-500.0,0.00028498,18]
[356074217,1741882241243,-500.0,0.00028498,18]
[356074218,1741882241253,-500.0,0.00028498,18]
[356074219,1741882241263,-500.0,0.00028498,18]
[356074220,1741882241273,-500.0,0.00028498,18]
[356074221,1741882241282,-500.0,0.00028498,18]
[356074222,1741882241291,-669.19,0.00028498,18]
[356074223,1741882241300,-500.0,0.00028498,18]
[356074224,1741882241309,-500.0,0.00028498,18]
[356074225,1741882241319,-1140.84,0.00028498,18]
[356074226,1741882241328,-500.0,0.00028498,18]
[356074227,1741882241338,-895.15,0.00028498,18]
[356074228,1741882241350,-500.0,0.00028498,18]
[356074229,1741882241359,-500.0,0.00028498,18]
[356074230,1741882241368,-580.37650496,0.00028498,18]
[356074231,1741882241378,-711.74,0.00028498,18]
[356074232,1741882241390,-500.0,0.00028498,18]
[356074233,1741882241399,-1178.32,0.00028498,18]
[356074234,1741882241408,-500.0,0.00028498,18]
[356074235,1741882241418,-500.0,0.00028498,18]
[356074236,1741882241428,-500.0,0.00028498,18]